Cogmind - Beta 17.1 *** ADVENTURER MODE // 2026.08.25 @ 00:01:16 Player: Limbermonkey Result: Destroyed by S-27 Virus with Autogun Performance ------------- Evolutions (3) 1500 Regions Visited (5) 1000 Robots Destroyed (81) 405 Value Destroyed (2865) 2865 Prototype IDs (6) 120 Alien Tech Used (0) 0 Bonus (0) 0 TOTAL SCORE: 5890 Bonus ------- None Cogmind --------- Core Integrity 0/700 Matter 180/300 Energy 96/100 System Corruption 10% Temperature Cool (2) Movement Walking (130) Location -7/Factory Parts ------- > --- POWER (1) -------- (None) > --- PROPULSION (3) --- Titanium Leg > --- UTILITY (6) ------ Improved Signal Interpreter Hacking Suite > --- WEAPON (3) ------- (None) > --- INVENTORY (5) ---- Ion Engine Heat Sink Large Storage Unit Improved Signal Interpreter Seismic Detector Peak State ------------ > --- POWER ------------ Improved Ion Engine > --- PROPULSION ------- Light Treads Light Treads Light Treads > --- UTILITY ---------- Large Storage Unit Improved Signal Interpreter Seismic Detector Kinecellerator Hacking Suite System Shield > --- WEAPON ----------- Enhanced Autogun Enhanced Autogun Mini Assault Cannon > --- INVENTORY -------- Ion Engine Improved Ion Engine Light Treads Light Treads Heat Sink Medium Storage Unit Improved Signal Interpreter Improved Terrain Scanner Seismic Detector Improved Targeting Computer Light Armor Plating Light Armor Plating EMP Blaster Datajack [Rating: 35] Favorites ----------- Power Improved Ion Engine Engine Improved Ion Engine Power Core Light Nuclear Core Propulsion Light Treads Treads Light Treads Leg Aluminum Leg Wheel Subdweller Monowheel Hover Unit Gravmag System Utility Medium Storage Unit Device Sensor Array Storage Medium Storage Unit Processor Improved Signal Interpreter Hackware System Shield Protection Light Armor Plating Weapon Enhanced Autogun Energy Gun Small Laser Energy Cannon Subdweller Beam Cannon Ballistic Gun Enhanced Autogun Ballistic Cannon Mini Assault Cannon Launcher EMP Blaster Special Weapon Mining Laser Special Melee Weapon Datajack Build | -11 -10 -10 -8 -8 -7 ------- Run | Yrd Mat Sub Mat Sto Fac Slots Evolved 6 | . . . 4 . 2 Power . | . . . . . . Propulsion 1 | . . . 1 . . Utility 4 | . . . 2 . 2 Weapon 1 | . . . 1 . . Parts Attached 67 | 1 2 6 33 10 15 Power 7 | . . 1 4 1 1 Engine 6 | . . 1 3 1 1 Core 1 | . . . 1 . . Reactor . | . . . . . . Propulsion 19 | . . 2 10 5 2 Treads 8 | . . . 3 5 . Leg 1 | . . . . . 1 Wheel 3 | . . 2 1 . . Hover 7 | . . . 6 . 1 Flight . | . . . . . . Utility 21 | 1 1 . 10 2 7 Device 8 | 1 . . 4 1 2 Storage 3 | . 1 . 1 1 . Processor 2 | . . . 1 . 1 Hackware 2 | . . . 1 . 1 Protection 6 | . . . 3 . 3 Artifact . | . . . . . . Weapon 20 | . 1 3 9 2 5 Energy Gun 5 | . . 2 1 1 1 Energy Cannon 1 | . . 1 . . . Ballistic Gun 5 | . . . 5 . . Ballistic Cannon 4 | . . . 1 1 2 Launcher 2 | . . . 1 . 1 Special Weapon 1 | . 1 . . . . Impact Weapon . | . . . . . . Slashing Weapon . | . . . . . . Piercing Weapon . | . . . . . . Special Melee Weapon 2 | . . . 1 . 1 Unidentified Prototypes 4 | . . . 2 2 . Parts Lost 38 | . . 1 15 1 21 Power 4 | . . . 2 . 2 Propulsion 12 | . . 1 5 . 6 Utility 13 | . . . 4 1 8 Weapon 9 | . . . 4 . 5 Highest Loss Streak 12 | . . 1 8 1 12 To Critical Strikes . | . . . . . . Average Backups 10 | 7 8 10 9 11 11 Power 1 | 1 2 2 1 1 1 Propulsion 1 | 3 3 3 1 . 1 Utility 5 | . 1 3 5 7 7 Weapon 1 | 1 2 2 . 1 . Tool/Special . | . . . . . . Unused Backups 9 | 1 2 1 . . 5 Power 2 | 1 . 1 . . . Propulsion . | . . . . . . Utility 7 | . 2 . . . 5 Weapon . | . . . . . . Tool/Special . | . . . . . . Average Slot Usage (%) 90 | . 100 94 82 99 87 Engine 8 | . 14 14 5 9 4 Treads 12 | . . . 8 26 18 Leg 3 | . 28 7 . . . Wheel 5 | . . 20 3 . . Hover 2 | . . . 10 . . Device 10 | . 14 14 12 8 5 Storage 9 | . 14 14 9 9 6 Processor 6 | . . . 5 9 11 Hackware 5 | . . . 5 9 9 Protection 2 | . . . 1 . 6 Energy Gun 4 | . 27 10 . . 1 Ballistic Gun 8 | . . . 11 20 4 Ballistic Cannon 3 | . . . . 6 9 Launcher 1 | . . . 2 . 2 Special Weapon 2 | . . 8 1 . . Peak Build Rating 35 | 9 10 15 27 28 35 Average Rating 21 | 8 9 12 21 27 27 On Entrance 15 | 6 9 10 12 27 28 Avg Prop Armor Cover (%) 10 | . . 10 14 . 2 Naked Turns . | . . . . . . Heaviest Build 51 | 13 18 28 29 38 51 Greatest Support 60 | 20 20 40 60 60 60 Greatest Overweight (x) 8 | . . 2 8 . 2 Average Overweight (x) . | . . . . . . Largest Inventory Capacity 15 | 8 10 10 10 15 15 Average Capacity 11 | 8 9 10 10 11 14 Most Carried 15 | 8 10 10 10 15 15 Average Carried 10 | 7 8 10 9 11 11 Final Capacity 15 | 8 10 10 10 15 5 Final Carried 15 | 8 10 10 10 15 5 Class Distribution -------------------- 26% | Scavenger-Mutant 26% | Hacker-Skirmisher 15% | Mutant 13% | Hacker-Gunner 8% | Hacker-Mutant 7% | Hacker-Tank Dominant Class ---------------- Mutant | -10/Materials Scavenger-Mutant | -10/Subcaves Hacker-Skirmisher | -8/Materials Hacker-Skirmisher | -8/Storage Hacker-Gunner | -7/Factory Resources | -11 -10 -10 -8 -8 -7 ----------- Run | Yrd Mat Sub Mat Sto Fac Matter Collected 2090 | 210 . 65 660 409 746 Remotely . | . . . . . . Salvage Created 2905 | 205 112 240 1004 785 559 Parts 179 | 19 4 18 56 56 26 Haulers Intercepted 1 | . . . 1 . . Recyclers Shooed 2 | . . . 1 . 1 Parts Field Recycled . | . . . . . . Retrieved Matter . | . . . . . . Parts Self-Destructed 14 | . . 14 . . . Prevented . | . . . . . . Parts Restored . | . . . . . . Kills | -11 -10 -10 -8 -8 -7 ------- Run | Yrd Mat Sub Mat Sto Fac Combat Hostiles Destroyed 59 | . 2 5 21 18 13 Guns 37 | . 2 4 10 16 5 Cannons 18 | . . 1 8 2 7 AOE 2 | . . . 1 . 1 Classes Destroyed 13 | 3 2 1 4 1 2 Worker 5 | 2 . . 1 2 . Tunneler 5 | 5 . . . . . Hauler 1 | . . . 1 . . Recycler 3 | 1 . . . . 2 Operator 3 | . . . 2 1 . Watcher 5 | . 1 . 2 1 1 Swarmer 6 | . . . . 6 . Grunt 24 | . 2 . 12 4 6 Brawler 1 | . . . . . 1 Sentry 14 | . . . 7 7 . Hunter 5 | . . . 2 1 2 Programmer 4 | . . . . . 4 Subdweller 5 | . . 5 . . . Best Kill Streak 7 | 4 3 3 6 7 2 Combat Bots Only 6 | . 2 3 4 6 2 Max Kills in Single Turn 2 | 1 1 1 2 2 2 Gunslinging 1 | . . . . 1 . Exploded 1 | . . . 1 . 1 Melee . | . . . . . . Uniques/NPCs Destroyed . | . . . . . . Combat | -11 -10 -10 -8 -8 -7 -------- Run | Yrd Mat Sub Mat Sto Fac Hostile Shots Fired 642 | . 12 35 217 71 307 Missed 183 | . 4 10 61 18 90 Hits 459 | . 8 25 156 53 217 Melee 3 | . . . . . 3 Projectile 456 | . 8 25 156 53 214 Critical Strikes 21 | . 1 1 9 4 6 Part Disruptions 1 | . . . . . 1 Damage Taken 5413 | . 80 447 1634 631 2621 Core 1306 | . 16 64 422 101 703 Absorbed by Shields . | . . . . . . Ignored by Resistances 1548 | . 24 122 463 184 755 Core Remaining (%) 57 | 100 . 68 . 4 . Volleys Fired 238 | 17 11 37 82 34 57 Largest 3 | 2 2 2 3 3 3 Hottest 160 | 80 100 160 100 90 130 Shots Fired 453 | 34 20 65 116 103 115 Gun 313 | 34 18 44 87 87 43 Cannon 107 | . . 3 21 16 67 Launcher 9 | . . . 4 . 5 Special 24 | . 2 18 4 . . Kinetic 279 | . . . 72 103 104 Thermal 129 | 34 20 65 4 . 6 Explosive 4 | . . . 4 . . Electromagnetic 41 | . . . 36 . 5 Robot Hit Streak 26 | 7 10 16 26 16 15 Robot Miss Streak 4 | 2 1 2 4 4 2 Penetration Max . | . . . . . . Secondary Targets 5 | . . . 1 4 . Max Gunslinging Chain 1 | . . . 1 1 . Shots Hit Robots 328 | 21 16 29 104 71 87 Core Hits 169 | 9 6 14 69 34 37 Critical Kills 1 | . . . 1 . . Critical Parts Destroyed . | . . . . . . Critical Strikes 7 | . . . 1 2 4 Destroy 1 | . . . 1 . . Blast 6 | . . . . 2 4 Melee Attacks 4 | . . . 3 . 1 Impact . | . . . . . . Slashing . | . . . . . . Piercing . | . . . . . . Sneak Attacks 1 | . . . 1 . . Combat Hostiles . | . . . . . . Follow-up Attacks . | . . . . . . Damage Inflicted 6462 | 243 178 384 1954 1329 2374 Guns 3573 | 243 178 326 1141 1072 613 Cannons 2064 | . . 58 526 240 1240 Explosions 667 | . . . 151 . 516 Melee . | . . . . . . Ramming 62 | . . . 40 17 5 Kinetic 4288 | . . . 1214 1312 1762 Thermal 1302 | 243 178 384 96 . 401 Explosive 151 | . . . 151 . . Electromagnetic 659 | . . . 453 . 206 Impact . | . . . . . . Slashing . | . . . . . . Piercing . | . . . . . . Highest Corruption 10 | . . . 2 2 10 Average Corruption 3 | . . . 2 2 5 Corruption Purged . | . . . . . . Corruption Blocked . | . . . . . . Effects 53 | . . . 6 19 28 Message Errors 10 | . . . 1 4 5 Matter Fused 17 | . . . 1 7 9 Heat Flow Errors 3 | . . . . . 3 Energy Discharges 6 | . . . 1 3 2 Parts Rejected 1 | . . . . . 1 Parts Fused 1 | . . . . . 1 Data Loss (minor) 5 | . . . . 2 3 Data Loss (major) 4 | . . . 1 1 2 Misfires 2 | . . . 1 1 . Alerts 1 | . . . . 1 . Weapon Failures 3 | . . . 1 . 2 Overload Shots . | . . . . . . Overflow Damage 108 | . . . . 15 93 Projectiles 50 | . . . . 15 35 Explosions 58 | . . . . . 58 Melee . | . . . . . . Knockbacks 29 | . . . 10 1 18 Impact . | . . . . . . Kinetic 27 | . . . 10 1 16 Secondary 2 | . . . . . 2 Self-Inflicted Damage 106 | . . . 16 . 90 Shots 6 | . . . . . 6 Rammed 14 | . . . 11 2 1 Targets Rammed 14 | . . . 11 2 1 Kicked . | . . . . . . Crushed . | . . . . . . Highest Temperature 363 | 108 219 54 87 113 363 Average Temperature 62 | 43 88 28 23 46 100 Received Heat Transfer 1782 | . 75 84 963 243 417 Effects 3 | . . . . . 3 Energy Bleed 1 | . . . . . 1 Short Circuit 1 | . . . . . 1 Damage (minor) 1 | . . . . . 1 Siege Activations . | . . . . . . Martial Activations . | . . . . . . Shielding Activations . | . . . . . . Robots Disrupted . | . . . . . . Combat Hostiles . | . . . . . . Robots Corrupted 2 | . . . 2 . . Combat Hostiles 2 | . . . 2 . . Parts Fried 2 | . . . 2 . . Impact Corruptions . | . . . . . . Robots Melted . | . . . . . . Combat Hostiles . | . . . . . . Parts Melted 3 | . 1 2 . . . Heat Transferred 2421 | 550 400 749 200 . 522 Parts Sabotaged . | . . . . . . Parts Stolen . | . . . . . . Parts Stripped . | . . . . . . Power Chain Reactions 1 | . . . . . 1 Alert | -11 -10 -10 -8 -8 -7 ------- Run | Yrd Mat Sub Mat Sto Fac Maximum Alert Level 1 | . . . . 1 . Low Security (%) 90 | 100 100 . 100 63 100 Level 1 9 | . . . . 36 . Level 2 . | . . . . . . Level 3 . | . . . . . . Level 4 . | . . . . . . Level 5 . | . . . . . . High Security . | . . . . . . Max Security . | . . . . . . Peak Influence 276 | 20 47 . 188 276 144 Initial 37 | . . . . 13 37 Average 85 | 2 11 . 76 157 59 Influence Increases 1988 | 40 57 . 676 571 644 Destroy 0b10 Robot/C 1080 | . 40 . 420 360 260 Destroy 0b10 Robot/NC 110 | 40 5 . 30 20 15 Destroy Leader 322 | . 12 . 126 112 72 Successful Hack 48 | . . . 10 28 10 Disable Machine 63 | . . . . . 63 Destroy Structure 65 | . . . 30 6 29 Partial Spotted 75 | . . . 30 45 . Lose Combat Pursuer 225 | . . . 30 . 195 Influence Decreases 1953 | 40 57 . 638 512 706 Entered New Map 85 | . . . . 25 60 Time Decay 1644 | 40 57 . 541 477 529 Lost Part 224 | . . . 97 10 117 Squads Dispatched 11 | . . . 3 5 3 Investigation 1 | . . . . 1 . Extermination 2 | . . . . . 2 Reinforcement 5 | . . . 3 1 1 Assault . | . . . . . . Garrison 3 | . . . . 3 . Intercept . | . . . . . . Searches Triggered . | . . . . . . Construction Impeded 1 | . . . 1 . . Haulers Reinforced . | . . . . . . Active Scanning Responses . | . . . . . . Cargo Convoy Interrupts 1 | . . . . . 1 Stealth | -11 -10 -10 -8 -8 -7 --------- Run | Yrd Mat Sub Mat Sto Fac Distress Signals 7 | . . . 3 . 4 Communications Jammed . | . . . . . . Distress Signals . | . . . . . . Times Spotted 114 | . 3 6 38 21 46 Peak Tracking Total 13 | . 2 2 8 5 13 Tactical Retreats 13 | . . 1 2 . 10 Traps | -11 -10 -10 -8 -8 -7 ------- Run | Yrd Mat Sub Mat Sto Fac Traps Triggered 5 | . . . . 4 1 Indirectly . | . . . . . . Trap Hack Attempts . | . . . . . . Triggered . | . . . . . . Disarmed . | . . . . . . Reprogrammed . | . . . . . . Reused . | . . . . . . Traps Extracted . | . . . . . . Installed . | . . . . . . Triggered . | . . . . . . Machines | -11 -10 -10 -8 -8 -7 ---------- Run | Yrd Mat Sub Mat Sto Fac Machines Disabled 7 | . . . . . 7 Max in Single Turn 2 | . . . . . 2 Machines Repaired . | . . . . . . Machines Dismantled . | . . . . . . Machines Sabotaged . | . . . . . . Overloaded Fab Kills . | . . . . . . Hacking | -11 -10 -10 -8 -8 -7 --------- Run | Yrd Mat Sub Mat Sto Fac Machines Accessed 21 | . . 1 7 10 3 Terminals 19 | . . . 6 10 3 Fabricators . | . . . . . . Repair Stations . | . . . . . . Recycling Units . | . . . . . . Scanalyzers 1 | . . . 1 . . Garrison Access . | . . . . . . Total Hacks 56 | . . 3 21 25 7 Successful 34 | . . 3 11 15 5 Failed 21 | . . . 9 10 2 Catastrophic . | . . . . . . Database Lockouts 1 | . . . 1 . . Manual 42 | . . . 16 19 7 Terminals 48 | . . . 16 25 7 Fabricators . | . . . . . . Repair Stations . | . . . . . . Recycling Units . | . . . . . . Scanalyzers 5 | . . . 5 . . Garrison Access . | . . . . . . Terminal Hacks 15 | . . 3 1 10 1 Record 3 | . . 3 . . . Part Schematic 4 | . . . 1 3 . Prototype ID Bank 1 | . . . . 1 . Open Door 4 | . . . . 4 . Recall Investigation 1 | . . . . 1 . Zone Layout 2 | . . . . 1 1 Fabricator Hacks . | . . . . . . Repair Station Hacks . | . . . . . . Recycling Unit Hacks . | . . . . . . Scanalyzer 4 | . . . 4 . . Retrieve Study 4 | . . . 4 . . Garrison Access Hacks . | . . . . . . Unauthorized Hacks 15 | . . . 6 5 4 Terminals 15 | . . . 6 5 4 Assimilate 2 | . . . . . 2 Botnet 13 | . . . 6 5 2 Fabricators . | . . . . . . Repair Stations . | . . . . . . Recycling Units . | . . . . . . Scanalyzers . | . . . . . . Garrison Access . | . . . . . . Data Cores Recovered 2 | . . . 1 1 . Used . | . . . . . . Hacking Detections 9 | . . . 4 4 1 Full Trace Events . | . . . . . . Feedback Events . | . . . . . . Feedback Blocked . | . . . . . . Robot Schematics Acquired . | . . . . . . Robots Built . | . . . . . . Authchips . | . . . . . . Time . | . . . . . . Total Robot Build Rating . | . . . . . . Part Schematics Acquired 4 | . . . 1 3 . Parts Built . | . . . . . . Authchips . | . . . . . . Time . | . . . . . . Total Part Build Rating . | . . . . . . Part Studies Acquired 4 | . . . 4 . . Parts Repaired . | . . . . . . Time . | . . . . . . Parts Recycled . | . . . . . . Recycled Matter . | . . . . . . Retrieved Matter . | . . . . . . Retrieved Components . | . . . . . . Parts Scanalyzed . | . . . . . . Part Schematics Acquired . | . . . . . . Parts Damaged . | . . . . . . Bothacking | -11 -10 -10 -8 -8 -7 ------------ Run | Yrd Mat Sub Mat Sto Fac Used RIF Installer . | . . . . . . Robots Hacked 1 | . . . . . 1 Non-combat . | . . . . . . Combat 1 | . . . . . 1 Robot Hacks Applied 1 | . . . . . 1 parse_system 1 | . . . . . 1 Relay Couplers Released . | . . . . . . Fabnet Peak Effective % . | . . . . . . Robots Rewired . | . . . . . . Allies Hacked . | . . . . . . Hacks Repelled . | . . . . . . Allies | -11 -10 -10 -8 -8 -7 -------- Run | Yrd Mat Sub Mat Sto Fac Total Allies . | . . . . . . Largest Group . | . . . . . . Highest-Rated Group . | . . . . . . Highest-Rated Ally . | . . . . . . Total Orders . | . . . . . . Ally Attacks . | . . . . . . Total Damage . | . . . . . . Kills . | . . . . . . Allies Corrupted . | . . . . . . Allies Melted . | . . . . . . Intel | -11 -10 -10 -8 -8 -7 ------- Run | Yrd Mat Sub Mat Sto Fac Active Infowar (turns) 4255 | 133 243 1184 1208 1039 448 Sensors 1942 | . . . 1044 898 . Terrain 1758 | 133 243 1184 164 . 34 Seismic 749 | . . . 194 141 414 Robot Analysis Total . | . . . . . . Derelict Logs Recovered 1 | . . 1 . . . Drone Launches . | . . . . . . Drone Recoveries . | . . . . . . Exploration | -11 -10 -10 -8 -8 -7 ------------- Run | Yrd Mat Sub Mat Sto Fac Turns Passed 5362 | 174 243 1184 1320 1113 1328 Spaces Moved 2652 | 39 147 514 753 529 670 Core 74 | . . . 1 . 73 Treads 1328 | . . . 215 529 584 Legs 264 | 39 147 65 . . 13 Wheels 728 | . . 449 279 . . Hover 258 | . . . 258 . . Flight . | . . . . . . Fastest Speed 50 | 120 120 110 52 160 50 Average Speed 134 | 120 120 117 108 160 160 Slowest Speed 450 | 120 120 260 450 160 240 Overloaded Moves . | . . . . . . Propulsion Burnouts . | . . . . . . Robots Hopped . | . . . . . . Potential Cave-ins . | . . . . . . Cave-ins Triggered . | . . . . . . Exploration Rate (%) 39 | 3 42 44 55 79 14 Regions Visited 5 Branch Regions 2 Pre-discovered Areas . | . . . . . . Known Exits Taken 3 | . . 1 1 1 . Unknown Exits Taken 2 | 1 1 . . . . Scrap Searched . | . . . . . . Spaces Dug . | . . . . . . Terrain Destroyed 74 | . . . 33 6 35 Melee . | . . . . . . Projectile 10 | . . . . 6 4 AOE 64 | . . . 33 . 31 Terrain Rammed . | . . . . . . Walls Destroyed . | . . . . . . Machines Disabled . | . . . . . . Actions | -11 -10 -10 -8 -8 -7 --------- Run | Yrd Mat Sub Mat Sto Fac Total 4055 | 134 189 994 1156 750 832 Wait 1013 | 72 27 432 247 158 77 Move 2647 | 38 146 513 752 528 670 Hop . | . . . . . . Pick Up 23 | 4 2 . 9 5 3 Fast Attach 37 | 1 . 3 22 6 5 Attach 20 | . . . 7 1 12 Detach 6 | . . . 3 1 2 Swap 18 | . 2 4 6 6 . Drop 35 | 2 1 5 14 9 4 Fire 238 | 17 11 37 82 34 57 Melee 4 | . . . 3 . 1 Ram 10 | . . . 10 . . Kick . | . . . . . . Crush 4 | . . . 1 2 1 Escape Stasis . | . . . . . . Rewire . | . . . . . . Trap . | . . . . . . Miscellaneous . | . . . . . . Route ------- -11/Scrapyard -10/Materials (discovered 2 exits: [*Mat] / *Sub) -10/Subcaves (discovered 3 exits: *Mat x2 / Rec) -8/Materials (discovered 3 exits: *Fac / *Sto x2) -8/Storage -7/Factory History --------- Turn | Location | Event 13 | -11/Scrapyard | Discovered new exit (range 3) 175 | -11/Scrapyard | Entered Materials 315 | -10/Materials | Build established: Mutant 365 | -10/Materials | Discovered new exit (range 15) 372 | -10/Materials | Discovered new exit (range 8) 418 | -10/Materials | Entered Subcaves 419 | -10/Subcaves | Approached by a straggling Scientist 468 | -10/Subcaves | Shifting Twisted Machinery released Multitool 469 | -10/Subcaves | Shifting Twisted Machinery released Battle Cannon 591 | -10/Subcaves | Visited Clippyterm 595 | -10/Subcaves | Identified exit to Materials 595 | -10/Subcaves | Identified exit to Recycling 683 | -10/Subcaves | Learned Materials stockpile data 844 | -10/Subcaves | Build established: Scavenger-Mutant 885 | -10/Subcaves | A swath of the cavern ceiling suddenly collapsed 1602 | -10/Subcaves | Entered Materials 1602 | -8/Materials | Evolved 4 slots: Propulsion x1, Utility x2, Weapon x1 2084 | -8/Materials | Discovered new exit (range 9) 2143 | -8/Materials | Lost 8 parts (1p3n2u2w) 2210 | -8/Materials | Core integrity fell below 50% 2349 | -8/Materials | Discovered new exit (range 8) 2382 | -8/Materials | Identified exit to Storage 2461 | -8/Materials | Central database locked down 2693 | -8/Materials | Build established: Hacker-Skirmisher 2726 | -8/Materials | Discovered exit to Storage (range 15) 2922 | -8/Materials | Entered Storage 3115 | -8/Storage | Core integrity fell below 20% 3119 | -8/Storage | Garrison activated, responded to threat 3534 | -8/Storage | Discovered new exit (range 16) 3569 | -8/Storage | Identified exit to Factory 4035 | -8/Storage | Entered Factory 4035 | -7/Factory | Evolved 2 slots: Utility x2 4112 | -7/Factory | Build established: Hacker-Gunner 5076 | -7/Factory | Build established: Hacker-Tank 5253 | -7/Factory | Cargo convoy interrupted 5301 | -7/Factory | System corruption reached 10% 5320 | -7/Factory | Core integrity fell below 50% 5350 | -7/Factory | Core integrity fell below 20% 5363 | -7/Factory | Destroyed by S-27 Virus with Autogun Last Messages --------------- 05316_ Datajack+ destroyed. 05321_ K-01 Serf cleans the Subcomponent Replicator. 05323_ Slug penetrates Wall. 05324_ System corrupted: Heat flow error (+131). 05324_ Acquired 6 matter. 05325_ Acquired 5 matter. 05326_ Acquired 29 matter. 05326_ K-01 Serf cleans the Subcomponent Replicator. 05327_ Acquired 1 matter. 05327_ Acquired 15 matter. 05327_ K-01 Serf cleans the Subcomponent Replicator. 05332_ Acquired 100 matter. 05333_ K-01 Serf cleans the Subcomponent Replicator. 05341_ Imp. Terrain Scanner destroyed. 05344_ System corrupted: Component data lost. 05346_ Acquired Titanium Leg. Map ----- +----------------------------------------------------+ | ?????????????????????????????????????????????????? | | ?????????????????????????????????????????????????? | | ?????????????????????????????????????????????????? | | ?????????????????????????????????????????????????? | | ?????????????????????????????????????????????????? | | ?????????????????????????????????????????????????? | | ?????????????????????????????????????????????????? | | ??????????????????? ???????????????????????????? | | ??????????????????? ?????????????????????????? | | ??????????????????? #??????????????????????? | | ??????????????????? #??????????????????????? | | ??????????????????? #??????????????????????? | | ??????????????????# #??????????????????????? | | ??????????????????# /??????????????????????? | | ??????????????????# k #??????????????????????? | | ??????????????????# #??????????????????????? | | ??????????????????# k#??????????????????????? | | ??????????????????# #??????????????????????? | | ?????############## #??????????????????????? | | ?????# # #??????????????????##### | | ?????# """"""% # #??????????????????# | | ?????# """"""* # ################???# | | ?????# """""" + # """" ##### | | ?????# """""" # # ""R"" !""" + | | ?????# # k # "" "" """"" ##### | | ?????# """"" # @# """"" #???# | | ???#?# """""" # u # #???# | | " #?# """""" # ks# #???# | | " #?# """""" # ss####/############### | | " #?# # % | | " #?# ! # s ^ | | " #?#+##+######### """ "" """ """ "" | | #?# #???????# """ """ """ """ """ | | #?# #???????# """ """ """ """ """ | | ###### #???????# "" "" "" "" "" | | #???????# "" "" "" "% "" | | ########+####????## k | | #?# #?????# ^ """ """ """ " """ | | #?# """ """ #?##### """ """ """ """ """ | | #?# """ """ #?# """ """ """ """ """ | | #?# """ """ #?# "" "" "" "" "" #### | | #?# #?# "" "" "" "" "" #??# | | #?# [ #?# #??# # | | ### [ #?# #??# # | | ## #?# ################ #?##%# | | ###+########## # #########/#######/# | | # # "" ! % | | + %# ""S ! | | % # # "" | | % # # """" " | +----------------------------------------------------+ Best States ------------- Heat Dissipation 41 Energy Generation 15 Energy Capacity 275 Matter Stores 300 Matter Capacity 300 Sight Range 16 Robot Scan Range 14 Terrain Scan Range 16 Terrain Scan Density 10 Armor Coverage 375 Resistance: KI 20 Resistance: TH 20 Resistance: EX 20 Resistance: EM 20 Resistance: I 20 Resistance: S 20 Resistance: P 20 Evasion (%) 55 Targeting Accuracy 6 Recoil Reduction 3 Kinecelleration 30 Offensive Hacking 20 Defensive Hacking 10 Item Schematics ----------------- Hacking Suite | -8/Materials | Hacked Signal Interpreter | -8/Storage | Hacked System Shield | -8/Storage | Hacked Remote Datajack | -8/Storage | Hacked Robot Schematics ------------------ None Fabricated ------------ Nothing Repaired ---------- Nothing Studied --------- Datajack | -8/Materials | Hacked Ion Engine | -8/Materials | Hacked Lgt. Treads | -8/Materials | Hacked Lgt. Nuclear Core | -8/Materials | Hacked Alien Tech Used ----------------- None Achievements -------------- Jackpot Challenges ------------ None Game ------ Seed CompositeReactiveChronowheel Manual? 0 Play Time 01:19:12 Cumulative 32.3 hours Start 2026.08.24 @ 22:32:02 End 2026.08.25 @ 00:01:16 Sessions 3 Manual Loads 0 Difficulty Adventurer Special Mode None Game No. 22 Rogue 0 Adventurer 22 Explorer 0 Win Type - Total 0 Types 0/0/0/0/0/0/0/0/0/0 Lore% 17 Gallery% 24 Achievement% 19 Wizard Run 0 Options --------- Layout 1 ASCII 0 Keyboard 1 Movement Numpad Keybinds 0 Fullscreen 1 Font 48/Smallcaps Map View 50x35 Zoom Use 0% Tactical HUD 1 Map Filters NONE Filters NONE Steam 1 RUN: 820a4ce1-65a5-4a65-ae1d-5ef53e9ef7d8